[Event "*** Titled Tuesday Blitz"]
[Site "Chess.com"]
[Date "2019.02.05"]
[Round "8"]
[White "Eliwood44"]
[Black "AsaHoffmann"]
[Result "1-0"]
[WhiteElo "2151"]
[BlackElo "2188"]
[TimeControl "180+2"]
[EndTime "15:00:40 PST"]
[Termination "Eliwood44 won by resignation"]

1. d4 {[%clk 0:03:01.9]} 1... Nf6 {[%clk 0:02:59.1]} 2. Nf3 {[%clk 0:02:41.9]}
2... d6 {[%clk 0:02:58.8]} 3. Nc3 {[%clk 0:02:33.9]} 3... Bf5 {[%clk 0:02:58.2]}
4. Nh4 {[%clk 0:02:31.3]} 4... Bd7 {[%clk 0:02:58]} 5. e4 {[%clk 0:02:32.2]}
5... e5 {[%clk 0:02:58.5]} 6. Nf3 {[%clk 0:02:32.4]} 6... Nc6 {[%clk 0:02:57.8]}
7. d5 {[%clk 0:02:29.8]} 7... Ne7 {[%clk 0:02:57.8]} 8. h3 {[%clk 0:02:31.2]}
8... Ng6 {[%clk 0:02:58.1]} 9. a4 {[%clk 0:02:29.3]} 9... Be7 {[%clk 0:02:58]}
10. Bb5 {[%clk 0:02:29.8]} 10... O-O {[%clk 0:02:55.1]} 11. Qe2 {[%clk
0:02:30.5]} 11... Nh5 {[%clk 0:02:54.5]} 12. Bxd7 {[%clk 0:02:02]} 12... Nhf4
{[%clk 0:02:48.1]} 13. Qf1 {[%clk 0:01:59.7]} 13... Qxd7 {[%clk 0:02:48.1]} 14.
g3 {[%clk 0:02:01.2]} 14... Nh5 {[%clk 0:02:44.8]} 15. Be3 {[%clk 0:02:00.4]}
15... f5 {[%clk 0:02:44.7]} 16. exf5 {[%clk 0:01:58.1]} 16... Qxf5 {[%clk
0:02:44.1]} 17. Nd2 {[%clk 0:01:53.9]} 17... Qxc2 {[%clk 0:02:43.1]} 18. Qb5
{[%clk 0:01:46.6]} 18... b6 {[%clk 0:02:19.3]} 19. a5 {[%clk 0:01:43.2]} 19...
Bf6 {[%clk 0:02:07.1]} 20. axb6 {[%clk 0:01:42.5]} 20... axb6 {[%clk 0:02:05.8]}
21. Rxa8 {[%clk 0:01:38.7]} 21... Rxa8 {[%clk 0:02:05.1]} 22. O-O {[%clk
0:01:39.9]} 22... Nhf4 {[%clk 0:01:55.1]} 23. Qd7 {[%clk 0:01:28.6]} 23... Rd8
{[%clk 0:01:35.2]} 24. Qxc7 {[%clk 0:01:29.4]} 24... Nxh3+ {[%clk 0:01:26.7]}
25. Kg2 {[%clk 0:01:25.3]} 25... Ng5 {[%clk 0:01:25]} 26. Bxg5 {[%clk
0:01:23.7]} 26... Bxg5 {[%clk 0:01:24.6]} 27. Nde4 {[%clk 0:01:25]} 27... Be7
{[%clk 0:01:21.9]} 28. Qxb6 {[%clk 0:01:25.2]} 28... Qd3 {[%clk 0:01:16.8]} 29.
Rd1 {[%clk 0:01:20.8]} 29... Qc4 {[%clk 0:01:17.2]} 30. Qc6 {[%clk 0:01:13.9]}
30... Qb3 {[%clk 0:01:16.1]} 31. Rd2 {[%clk 0:01:12.2]} 31... h6 {[%clk
0:01:15.7]} 32. Nb5 {[%clk 0:01:08.3]} 32... Qb4 {[%clk 0:01:11.9]} 33. Nbc3
{[%clk 0:01:03.8]} 33... Qb8 {[%clk 0:01:05.5]} 34. Re2 {[%clk 0:00:58.3]} 34...
Bg5 {[%clk 0:01:02.7]} 35. Nxg5 {[%clk 0:00:56.1]} 35... hxg5 {[%clk 0:01:03]}
36. Ne4 {[%clk 0:00:57.2]} 36... Ne7 {[%clk 0:00:51.8]} 37. Qc4 {[%clk
0:00:53.6]} 37... g4 {[%clk 0:00:50.4]} 38. Ng5 {[%clk 0:00:53.6]} 38... Qc8
{[%clk 0:00:46.5]} 39. Qe4 {[%clk 0:00:53.3]} 39... Qf5 {[%clk 0:00:42.7]} 40.
Qxf5 {[%clk 0:00:50]} 40... Nxf5 {[%clk 0:00:42.7]} 41. Rc2 {[%clk 0:00:50.6]}
41... Ne7 {[%clk 0:00:41.3]} 42. Ne6 {[%clk 0:00:49.2]} 42... Rb8 {[%clk
0:00:40.7]} 43. Rc7 {[%clk 0:00:49.5]} 43... Nxd5 {[%clk 0:00:40.9]} 44. Rxg7+
{[%clk 0:00:50.6]} 44... Kh8 {[%clk 0:00:41.3]} 45. Rxg4 {[%clk 0:00:50.6]}
45... Rxb2 {[%clk 0:00:40.9]} 46. Rg5 {[%clk 0:00:42.5]} 46... Nc3 {[%clk
0:00:36.4]} 47. Nd8 {[%clk 0:00:40.6]} 47... Ne4 {[%clk 0:00:32]} 48. Rf5 {[%clk
0:00:37.8]} 48... Kg7 {[%clk 0:00:30.3]} 49. g4 {[%clk 0:00:39.1]} 49... Kg6
{[%clk 0:00:29.7]} 50. Ne6 {[%clk 0:00:39.4]} 50... Nf6 {[%clk 0:00:26.5]} 51.
Nf8+ {[%clk 0:00:37.4]} 51... Kf7 {[%clk 0:00:27]} 52. Nh7 {[%clk 0:00:38]}
52... Ke6 {[%clk 0:00:27.2]} 53. Nxf6 {[%clk 0:00:38.8]} 53... d5 {[%clk
0:00:26.7]} 54. Nh5 {[%clk 0:00:38.8]} 54... d4 {[%clk 0:00:27]} 55. Rf8 {[%clk
0:00:36.6]} 55... d3 {[%clk 0:00:27.1]} 56. Rd8 {[%clk 0:00:37]} 56... e4 {[%clk
0:00:27.6]} 57. Ng3 {[%clk 0:00:37.5]} 57... Ke5 {[%clk 0:00:27.9]} 58. Re8+
{[%clk 0:00:37.6]} 58... Kf4 {[%clk 0:00:28.7]} 59. Rxe4+ {[%clk 0:00:37.7]}
59... Kg5 {[%clk 0:00:29.3]} 60. Kf3 {[%clk 0:00:37.2]} 60... d2 {[%clk
0:00:29.6]} 61. Re5+ {[%clk 0:00:37.7]} 61... Kf6 {[%clk 0:00:29.9]} 62. Rd5
{[%clk 0:00:38.8]} 62... Ke6 {[%clk 0:00:29.8]} 63. Rd8 {[%clk 0:00:37.9]} 63...
Ke7 {[%clk 0:00:29.6]} 64. Rd4 {[%clk 0:00:37]} 64... Ke6 {[%clk 0:00:30]} 65.
Ke2 {[%clk 0:00:34.8]} 65... Ke5 {[%clk 0:00:28.9]} 66. Rxd2 {[%clk 0:00:35.5]}
66... Rb4 {[%clk 0:00:29.3]} 67. Rd3 {[%clk 0:00:35.9]} 67... Rxg4 {[%clk
0:00:28.9]} 68. Kf3 {[%clk 0:00:37.1]} 68... Ra4 {[%clk 0:00:28.4]} 69. Rb3
{[%clk 0:00:37.7]} 69... Ra2 {[%clk 0:00:28.4]} 70. Rb5+ {[%clk 0:00:38.6]}
70... Ke6 {[%clk 0:00:28.7]} 71. Ne4 {[%clk 0:00:40]} 71... Ra3+ {[%clk
0:00:27.4]} 72. Kf4 {[%clk 0:00:41.2]} 72... Ra4 {[%clk 0:00:28]} 73. f3 {[%clk
0:00:35]} 73... Rc4 {[%clk 0:00:28.3]} 74. Rb6+ {[%clk 0:00:35.6]} 74... Ke7
{[%clk 0:00:28]} 75. Ke5 {[%clk 0:00:35.4]} 75... Ra4 {[%clk 0:00:28.2]} 76.
Rb7+ {[%clk 0:00:36.2]} 76... Kd8 {[%clk 0:00:28.3]} 77. f4 {[%clk 0:00:37.4]}
77... Ra5+ {[%clk 0:00:28.7]} 78. Ke6 {[%clk 0:00:34.3]} 78... Kc8 {[%clk
0:00:28.8]} 79. Rh7 {[%clk 0:00:34.5]} 79... Ra6+ {[%clk 0:00:28.6]} 80. Kd5
{[%clk 0:00:35.4]} 80... Ra5+ {[%clk 0:00:29]} 81. Nc5 {[%clk 0:00:36.4]} 81...
Kd8 {[%clk 0:00:29.6]} 82. f5 {[%clk 0:00:37]} 82... Ke8 {[%clk 0:00:30.2]} 83.
f6 {[%clk 0:00:38.1]} 83... Kf8 {[%clk 0:00:30.8]} 84. Ke6 {[%clk 0:00:36.9]}
84... Kg8 {[%clk 0:00:28.2]} 85. Rg7+ {[%clk 0:00:37]} 85... Kh8 {[%clk
0:00:28.1]} 86. Rc7 {[%clk 0:00:37.9]} 86... Ra8 {[%clk 0:00:25.5]} 87. Kf5
{[%clk 0:00:33.5]} 87... Kg8 {[%clk 0:00:23.4]} 88. Kg6 {[%clk 0:00:34]} 88...
Kh8 {[%clk 0:00:23.7]} 89. Rh7+ {[%clk 0:00:34.1]} 89... Kg8 {[%clk 0:00:23.9]}
90. f7+ {[%clk 0:00:35.4]} 90... Kf8 {[%clk 0:00:24.3]} 91. Ne6+ {[%clk
0:00:34.9]} 91... Ke7 {[%clk 0:00:24.8]} 92. f8=Q+ {[%clk 0:00:35.5]} 92... Kxe6
{[%clk 0:00:22.4]} 93. Qf6+ {[%clk 0:00:36.4]} 1-0

[Event "*** Titled Tuesday Blitz"]
[Site "Chess.com"]
[Date "2019.02.05"]
[Round "8"]
[White "j2806"]
[Black "masrahi"]
[Result "1/2-1/2"]
[WhiteElo "1802"]
[BlackElo "1847"]
[TimeControl "180+2"]
[EndTime "15:00:58 PST"]
[Termination "Game drawn - insufficient material"]

1. e4 {[%clk 0:03:00.9]} 1... c6 {[%clk 0:03:00.3]} 2. d4 {[%clk 0:03:00.9]}
2... d5 {[%clk 0:02:58.1]} 3. exd5 {[%clk 0:03:01.4]} 3... cxd5 {[%clk
0:02:58.3]} 4. Bd3 {[%clk 0:03:00.5]} 4... Nc6 {[%clk 0:02:58.3]} 5. c3 {[%clk
0:02:56.6]} 5... Qc7 {[%clk 0:02:53]} 6. h3 {[%clk 0:02:54.8]} 6... g6 {[%clk
0:02:50.9]} 7. Nf3 {[%clk 0:02:55.5]} 7... Nf6 {[%clk 0:02:47.3]} 8. O-O {[%clk
0:02:55.9]} 8... Bf5 {[%clk 0:02:46.9]} 9. Re1 {[%clk 0:02:44.7]} 9... Bxd3
{[%clk 0:02:45]} 10. Qxd3 {[%clk 0:02:45.5]} 10... e6 {[%clk 0:02:44.7]} 11.
Nbd2 {[%clk 0:02:44.4]} 11... Bg7 {[%clk 0:02:45.1]} 12. Ne5 {[%clk 0:02:44.9]}
12... O-O {[%clk 0:02:41.8]} 13. Ndf3 {[%clk 0:02:45.2]} 13... Rab8 {[%clk
0:02:39.9]} 14. Bf4 {[%clk 0:02:42.2]} 14... Nh5 {[%clk 0:01:52]} 15. Bh2 {[%clk
0:02:37.9]} 15... Nxe5 {[%clk 0:01:28.4]} 16. Nxe5 {[%clk 0:02:36]} 16... Qd8
{[%clk 0:01:18.7]} 17. Re2 {[%clk 0:02:05.7]} 17... Bh6 {[%clk 0:01:09.9]} 18.
Ng4 {[%clk 0:02:01.3]} 18... Bf4 {[%clk 0:00:59.7]} 19. g3 {[%clk 0:01:28.8]}
19... Bd6 {[%clk 0:00:52.6]} 20. Qe3 {[%clk 0:01:27.1]} 20... Nf6 {[%clk
0:00:31.5]} 21. Qh6 {[%clk 0:01:02.7]} 21... Nxg4 {[%clk 0:00:29.5]} 22. hxg4
{[%clk 0:01:03]} 22... Qf6 {[%clk 0:00:21.5]} 23. Kg2 {[%clk 0:00:55.7]} 23...
b5 {[%clk 0:00:20.3]} 24. a3 {[%clk 0:00:51.5]} 24... a5 {[%clk 0:00:20.6]} 25.
Rh1 {[%clk 0:00:52.2]} 25... b4 {[%clk 0:00:21.2]} 26. g5 {[%clk 0:00:44.5]}
26... Qg7 {[%clk 0:00:21]} 27. Qxg7+ {[%clk 0:00:27.2]} 27... Kxg7 {[%clk
0:00:22.7]} 28. axb4 {[%clk 0:00:28.1]} 28... axb4 {[%clk 0:00:23.5]} 29. Rc1
{[%clk 0:00:27]} 29... bxc3 {[%clk 0:00:23.9]} 30. bxc3 {[%clk 0:00:27]} 30...
Rfc8 {[%clk 0:00:24.6]} 31. Bg1 {[%clk 0:00:26.9]} 31... Rc4 {[%clk 0:00:25.4]}
32. f4 {[%clk 0:00:25.4]} 32... Rb3 {[%clk 0:00:25.4]} 33. Rec2 {[%clk
0:00:23.2]} 33... Ba3 {[%clk 0:00:25.4]} 34. Ra1 {[%clk 0:00:19.3]} 34... Rbxc3
{[%clk 0:00:24.8]} 35. Rxc3 {[%clk 0:00:17.4]} 35... Rxc3 {[%clk 0:00:26.7]} 36.
Bf2 {[%clk 0:00:18.3]} 36... Bb2 {[%clk 0:00:26.4]} 37. Rb1 {[%clk 0:00:18.5]}
37... Rc2 {[%clk 0:00:27.4]} 38. Rd1 {[%clk 0:00:19.5]} 38... f6 {[%clk
0:00:25.8]} 39. gxf6+ {[%clk 0:00:19.8]} 39... Kxf6 {[%clk 0:00:27.6]} 40. Kf3
{[%clk 0:00:21.3]} 40... Kf5 {[%clk 0:00:28.2]} 41. Re1 {[%clk 0:00:20.7]} 41...
Rc3+ {[%clk 0:00:25.4]} 42. Re3 {[%clk 0:00:21.3]} 42... Rxe3+ {[%clk 0:00:25]}
43. Bxe3 {[%clk 0:00:20.9]} 43... h6 {[%clk 0:00:24.3]} 44. g4+ {[%clk
0:00:21.8]} 44... Kf6 {[%clk 0:00:24.5]} 45. Bf2 {[%clk 0:00:23]} 45... g5
{[%clk 0:00:23.4]} 46. fxg5+ {[%clk 0:00:23.8]} 46... hxg5 {[%clk 0:00:24.9]}
47. Be3 {[%clk 0:00:24.9]} 47... e5 {[%clk 0:00:24.8]} 48. dxe5+ {[%clk
0:00:24.1]} 48... Bxe5 {[%clk 0:00:26.7]} 49. Ke2 {[%clk 0:00:23.6]} 49... d4
{[%clk 0:00:23.8]} 50. Bd2 {[%clk 0:00:23.4]} 50... Bf4 {[%clk 0:00:24.9]} 51.
Bb4 {[%clk 0:00:23.1]} 51... Ke5 {[%clk 0:00:26]} 52. Kd3 {[%clk 0:00:24.1]}
52... Kd5 {[%clk 0:00:25.8]} 53. Be7 {[%clk 0:00:24.3]} 53... Be3 {[%clk
0:00:25.4]} 54. Bf6 {[%clk 0:00:24.6]} 54... Kc5 {[%clk 0:00:25.7]} 55. Be7+
{[%clk 0:00:24.5]} 55... Kd5 {[%clk 0:00:26.8]} 56. Bf6 {[%clk 0:00:25.8]} 56...
Ke6 {[%clk 0:00:28.2]} 57. Bxd4 {[%clk 0:00:26.2]} 57... Bc1 {[%clk 0:00:18.6]}
58. Be3 {[%clk 0:00:26.5]} 58... Bxe3 {[%clk 0:00:17]} 59. Kxe3 {[%clk
0:00:27.6]} 59... Ke5 {[%clk 0:00:18.4]} 60. Kf3 {[%clk 0:00:25.9]} 60... Kd4
{[%clk 0:00:19.1]} 61. Kf2 {[%clk 0:00:17.5]} 61... Ke4 {[%clk 0:00:18.5]} 62.
Kg2 {[%clk 0:00:16.7]} 62... Kf4 {[%clk 0:00:18]} 63. Kh2 {[%clk 0:00:16.9]}
63... Ke4 {[%clk 0:00:11]} 64. Kh3 {[%clk 0:00:15.8]} 64... Kf3 {[%clk
0:00:10.2]} 65. Kh2 {[%clk 0:00:16.7]} 65... Kf4 {[%clk 0:00:10.2]} 66. Kh3
{[%clk 0:00:17.5]} 66... Ke3 {[%clk 0:00:10.4]} 67. Kg3 {[%clk 0:00:17.3]} 67...
Ke4 {[%clk 0:00:11]} 68. Kh3 {[%clk 0:00:17]} 68... Kf4 {[%clk 0:00:10.8]} 69.
Kh2 {[%clk 0:00:17.9]} 69... Kxg4 {[%clk 0:00:11.6]} 70. Kg2 {[%clk 0:00:19.1]}
70... Kh4 {[%clk 0:00:11.9]} 71. Kh2 {[%clk 0:00:19.9]} 71... g4 {[%clk
0:00:12.6]} 72. Kg2 {[%clk 0:00:21]} 72... g3 {[%clk 0:00:11.9]} 73. Kg1 {[%clk
0:00:18.8]} 73... Kh3 {[%clk 0:00:12.5]} 74. Kh1 {[%clk 0:00:20]} 74... Kg4
{[%clk 0:00:09.3]} 75. Kg2 {[%clk 0:00:20.9]} 75... Kf4 {[%clk 0:00:09.7]} 76.
Kg1 {[%clk 0:00:21.7]} 76... Kf3 {[%clk 0:00:09.9]} 77. Kf1 {[%clk 0:00:22.8]}
77... Ke4 {[%clk 0:00:02.3]} 78. Kg2 {[%clk 0:00:23.6]} 78... Kd5 {[%clk
0:00:03.3]} 79. Kxg3 {[%clk 0:00:24.2]} 1/2-1/2

[Event "*** Titled Tuesday Blitz"]
[Site "Chess.com"]
[Date "2019.02.05"]
[Round "8"]
[White "Vugar_Manafov"]
[Black "staz_staz"]
[Result "0-1"]
[WhiteElo "2362"]
[BlackElo "2358"]
[TimeControl "180+2"]
[EndTime "15:03:37 PST"]
[Termination "staz_staz won by checkmate"]

1. Nf3 {[%clk 0:03:01.9]} 1... c5 {[%clk 0:02:46.8]} 2. g3 {[%clk 0:03:01.3]}
2... Nc6 {[%clk 0:02:46.8]} 3. Bg2 {[%clk 0:03:02.4]} 3... g6 {[%clk 0:02:48.3]}
4. O-O {[%clk 0:03:00.4]} 4... e5 {[%clk 0:02:49.5]} 5. d3 {[%clk 0:03:01.7]}
5... Bg7 {[%clk 0:02:50.8]} 6. Nc3 {[%clk 0:02:59.8]} 6... Nge7 {[%clk
0:02:50.9]} 7. e4 {[%clk 0:03:00.8]} 7... d6 {[%clk 0:02:51.6]} 8. Ne1 {[%clk
0:02:58.7]} 8... O-O {[%clk 0:02:50.3]} 9. f4 {[%clk 0:02:55]} 9... exf4 {[%clk
0:02:43.4]} 10. gxf4 {[%clk 0:02:55.2]} 10... f5 {[%clk 0:02:41.2]} 11. Be3
{[%clk 0:02:52.6]} 11... Nd4 {[%clk 0:02:37.8]} 12. Nf3 {[%clk 0:02:51.4]} 12...
fxe4 {[%clk 0:02:36]} 13. dxe4 {[%clk 0:02:50.8]} 13... Bg4 {[%clk 0:02:33.3]}
14. Qd2 {[%clk 0:02:46.9]} 14... Nec6 {[%clk 0:02:30.6]} 15. Nd5 {[%clk
0:02:42.6]} 15... Kh8 {[%clk 0:02:30]} 16. c3 {[%clk 0:02:35.1]} 16... Nxf3+
{[%clk 0:02:28.4]} 17. Bxf3 {[%clk 0:02:37]} 17... Qh4 {[%clk 0:02:29.3]} 18.
Qf2 {[%clk 0:02:33.9]} 18... Qh5 {[%clk 0:02:26.5]} 19. Rae1 {[%clk 0:02:23.5]}
19... Rae8 {[%clk 0:02:24.4]} 20. Bd2 {[%clk 0:02:19.1]} 20... Ne5 {[%clk
0:02:06.8]} 21. Bxg4 {[%clk 0:02:05.2]} 21... Qxg4+ {[%clk 0:02:03.6]} 22. Qg3
{[%clk 0:02:01.2]} 22... Qxg3+ {[%clk 0:02:01.4]} 23. hxg3 {[%clk 0:02:03.1]}
23... Nd3 {[%clk 0:02:02.9]} 24. Re2 {[%clk 0:02:03.9]} 24... Nxb2 {[%clk
0:02:01]} 25. Rb1 {[%clk 0:02:05.1]} 25... Nc4 {[%clk 0:02:02.4]} 26. Rxb7
{[%clk 0:02:06.5]} 26... a5 {[%clk 0:01:51.4]} 27. Bc1 {[%clk 0:02:05.8]} 27...
h5 {[%clk 0:01:43.9]} 28. f5 {[%clk 0:02:02.5]} 28... gxf5 {[%clk 0:01:41.6]}
29. Rh2 {[%clk 0:02:00.1]} 29... Rxe4 {[%clk 0:01:31.6]} 30. Rxh5+ {[%clk
0:01:59]} 30... Kg8 {[%clk 0:01:32.9]} 31. Ne7+ {[%clk 0:01:59.9]} 31... Rxe7
{[%clk 0:00:59.8]} 32. Rxe7 {[%clk 0:02:01.8]} 32... Bxc3 {[%clk 0:00:56.6]} 33.
Rg5+ {[%clk 0:01:58.9]} 33... Kh8 {[%clk 0:00:57.2]} 34. Rh5+ {[%clk 0:01:46.9]}
34... Kg8 {[%clk 0:00:56.9]} 35. Bh6 {[%clk 0:01:48.4]} 35... Bd4+ {[%clk
0:00:41.4]} 36. Kf1 {[%clk 0:01:44.3]} 36... Rb8 {[%clk 0:00:09.4]} 37. Rg5+
{[%clk 0:01:38.1]} 37... Kh8 {[%clk 0:00:10.6]} 38. Bg7+ {[%clk 0:01:39.7]}
38... Bxg7 {[%clk 0:00:11.5]} 39. Rgxg7 {[%clk 0:01:41.4]} 39... Rb1+ {[%clk
0:00:11.3]} 40. Kg2 {[%clk 0:01:41.3]} 40... Rb2+ {[%clk 0:00:11.4]} 41. Kh3
{[%clk 0:01:42.5]} 41... Ne5 {[%clk 0:00:13]} 42. Rh7+ {[%clk 0:01:42.8]} 42...
Kg8 {[%clk 0:00:13.5]} 43. Reg7+ {[%clk 0:01:44.7]} 43... Kf8 {[%clk 0:00:14.3]}
44. Ra7 {[%clk 0:01:46.3]} 44... Kg8 {[%clk 0:00:13.1]} 45. Rhc7 {[%clk
0:01:38.8]} 45... Rb8 {[%clk 0:00:07]} 46. Rxa5 {[%clk 0:01:39.4]} 46... c4
{[%clk 0:00:06.6]} 47. Ra6 {[%clk 0:01:34.1]} 47... Rd8 {[%clk 0:00:07.2]} 48.
a4 {[%clk 0:01:25.8]} 48... d5 {[%clk 0:00:08.3]} 49. Re6 {[%clk 0:01:26.3]}
49... Nf3 {[%clk 0:00:07.5]} 50. a5 {[%clk 0:01:25.3]} 50... Ng5+ {[%clk
0:00:08.3]} 51. Kh4 {[%clk 0:01:26.3]} 51... Nxe6 {[%clk 0:00:10.2]} 52. Rc6
{[%clk 0:01:27.3]} 52... Nd4 {[%clk 0:00:10.1]} 53. Rc7 {[%clk 0:01:28]} 53...
Nf3+ {[%clk 0:00:09.9]} 54. Kh5 {[%clk 0:01:28.8]} 54... d4 {[%clk 0:00:10.2]}
55. a6 {[%clk 0:01:27.3]} 55... Ra8 {[%clk 0:00:10.5]} 56. a7 {[%clk 0:01:28.1]}
56... c3 {[%clk 0:00:09.1]} 57. Rb7 {[%clk 0:01:28]} 57... c2 {[%clk 0:00:09.1]}
58. Rb8+ {[%clk 0:01:28.2]} 58... Kf7 {[%clk 0:00:10.4]} 59. Rxa8 {[%clk
0:01:28.2]} 59... c1=Q {[%clk 0:00:11.7]} 60. Rf8+ {[%clk 0:01:27.8]} 60... Ke7
{[%clk 0:00:10.9]} 61. Re8+ {[%clk 0:01:27.9]} 61... Kd7 {[%clk 0:00:11.2]} 62.
Rd8+ {[%clk 0:01:28.2]} 62... Kc7 {[%clk 0:00:11.6]} 63. Rc8+ {[%clk 0:01:27.1]}
63... Kxc8 {[%clk 0:00:12.5]} 64. a8=Q+ {[%clk 0:01:28]} 64... Kd7 {[%clk
0:00:13.4]} 65. Qxf3 {[%clk 0:01:29.6]} 65... Qc5 {[%clk 0:00:12.3]} 66. Kg6
{[%clk 0:01:25.7]} 66... Ke6 {[%clk 0:00:13.2]} 67. Qe2+ {[%clk 0:01:24.4]}
67... Qe5 {[%clk 0:00:14.1]} 68. Qc4+ {[%clk 0:01:25.3]} 68... Qd5 {[%clk
0:00:15]} 69. Qe2+ {[%clk 0:01:24.2]} 69... Kd6 {[%clk 0:00:12.6]} 70. Qa6+
{[%clk 0:01:24.2]} 70... Qc6 {[%clk 0:00:12.4]} 71. Qe2 {[%clk 0:01:15.2]} 71...
Qe4 {[%clk 0:00:10.6]} 72. Qa6+ {[%clk 0:01:15.3]} 72... Kd5 {[%clk 0:00:11.6]}
73. Qb5+ {[%clk 0:01:16.6]} 73... Ke6 {[%clk 0:00:12.5]} 74. Qb6+ {[%clk
0:01:17.1]} 74... Ke5 {[%clk 0:00:13.6]} 75. Qc7+ {[%clk 0:01:17.6]} 75... Kd5
{[%clk 0:00:14.3]} 76. Qb7+ {[%clk 0:01:14.4]} 76... Kc4 {[%clk 0:00:15.2]} 77.
Qa6+ {[%clk 0:01:16.1]} 77... Kc3 {[%clk 0:00:16.2]} 78. Qa3+ {[%clk 0:01:17.1]}
78... Kd2 {[%clk 0:00:17.3]} 79. Qb2+ {[%clk 0:01:18.2]} 79... Ke3 {[%clk
0:00:18.5]} 80. Qc1+ {[%clk 0:01:19.2]} 80... Kf3 {[%clk 0:00:19.7]} 81. Qh1+
{[%clk 0:01:11]} 81... Kxg3 {[%clk 0:00:19.2]} 82. Qg1+ {[%clk 0:01:12.3]} 82...
Kf3 {[%clk 0:00:20]} 83. Qf1+ {[%clk 0:01:13.2]} 83... Ke3 {[%clk 0:00:20.9]}
84. Qe1+ {[%clk 0:01:14.3]} 84... Kf4 {[%clk 0:00:21.3]} 85. Qh4+ {[%clk
0:01:14.7]} 85... Ke5 {[%clk 0:00:21.2]} 86. Qe7+ {[%clk 0:01:16]} 86... Kf4
{[%clk 0:00:21.9]} 87. Qh4+ {[%clk 0:01:16.5]} 87... Ke3 {[%clk 0:00:23.8]} 88.
Qe1+ {[%clk 0:01:17]} 88... Kd3 {[%clk 0:00:21.4]} 89. Qb1+ {[%clk 0:01:17.4]}
89... Kc4 {[%clk 0:00:21.9]} 90. Qa2+ {[%clk 0:01:15.5]} 90... Kc3 {[%clk
0:00:22.4]} 91. Qa1+ {[%clk 0:01:16.1]} 91... Kd2 {[%clk 0:00:23.3]} 92. Qb2+
{[%clk 0:01:15.7]} 92... Kd1 {[%clk 0:00:22.4]} 93. Qa1+ {[%clk 0:01:16.4]}
93... Ke2 {[%clk 0:00:22.9]} 94. Qb2+ {[%clk 0:01:15.7]} 94... Kf3 {[%clk
0:00:23.8]} 95. Qh2 {[%clk 0:01:14.4]} 95... d3 {[%clk 0:00:24.5]} 96. Qh1+
{[%clk 0:01:14.6]} 96... Ke3 {[%clk 0:00:24.9]} 97. Qe1+ {[%clk 0:01:14.8]}
97... Kf4 {[%clk 0:00:23.8]} 98. Qh4+ {[%clk 0:01:15.1]} 98... Kf3 {[%clk
0:00:23.7]} 99. Qh1+ {[%clk 0:01:11.9]} 99... Kf2 {[%clk 0:00:24.2]} 100. Qc1
{[%clk 0:01:05.2]} 100... f4+ {[%clk 0:00:23]} 101. Kg7 {[%clk 0:00:36.3]}
101... Qe3 {[%clk 0:00:22.4]} 102. Qb2+ {[%clk 0:00:35.9]} 102... d2 {[%clk
0:00:22.9]} 103. Qc2 {[%clk 0:00:37.3]} 103... Ke1 {[%clk 0:00:22.3]} 104. Qa4
{[%clk 0:00:26.8]} 104... d1=Q {[%clk 0:00:19.8]} 105. Qa5+ {[%clk 0:00:27.5]}
105... Qdd2 {[%clk 0:00:19.7]} 106. Qa1+ {[%clk 0:00:28.5]} 106... Ke2 {[%clk
0:00:20.9]} 107. Qa6+ {[%clk 0:00:29.4]} 107... Qed3 {[%clk 0:00:21.2]} 108.
Qe6+ {[%clk 0:00:30.2]} 108... Kf3 {[%clk 0:00:22.2]} 109. Qc6+ {[%clk
0:00:31.2]} 109... Qd5 {[%clk 0:00:21.7]} 110. Qa6 {[%clk 0:00:21.8]} 110...
Q2d4+ {[%clk 0:00:21.4]} 111. Kh6 {[%clk 0:00:19.9]} 111... Qd3 {[%clk 0:00:19]}
112. Qa4 {[%clk 0:00:07.4]} 112... Qd6+ {[%clk 0:00:17.1]} 113. Kg7 {[%clk
0:00:07.7]} 113... Q3g6+ {[%clk 0:00:18.2]} 114. Kh8 {[%clk 0:00:09.6]} 114...
Qf8# {[%clk 0:00:18.6]} 0-1